fUSD/lending_fUSD_20240607
["ID","MTS","AMOUNT","RATE_DAILY","PERIOD"]
[328767559,1717776647254,-500.0,0.00029863,2]
[328767560,1717776647265,-500.0,0.00029863,4]
[328767561,1717776647274,-500.0,0.00029863,4]
[328767562,1717776647284,-500.0,0.00029863,4]
[328767563,1717776647292,-500.0,0.00029863,4]
[328767564,1717776647302,-500.0,0.00029863,4]
[328767565,1717776647313,-500.0,0.00029863,4]
[328767566,1717776647322,-500.0,0.00029863,4]
[328767567,1717776647332,-500.0,0.00029863,4]
[328767568,1717776647341,-297.28,0.00029863,4]
[328767569,1717776647351,-500.0,0.00029863,4]
[328767570,1717776647360,-500.0,0.00029863,4]
[328767571,1717776647370,-150.73002061,0.00029865,2]
[328767572,1717776647379,-4971.31,0.00029873,2]
[328767573,1717776647388,-968.4410938,0.00029898,2]
[328767574,1717776647398,-165.42920419,0.00029898,2]
[328767575,1717776647407,-179.94027204,0.00029898,2]
[328767576,1717776647417,-968.44109371,0.00029898,2]
[328767577,1717776647426,-968.44109371,0.00029898,2]
[328767578,1717776647436,-968.44109371,0.00029899,2]
[328767579,1717776647446,-968.44109371,0.00029899,2]
[328767580,1717776647455,-968.44109371,0.00029899,2]
[328767581,1717776647464,-968.44109371,0.00029899,2]
[328767582,1717776647474,-968.44109371,0.00029899,2]
[328767583,1717776647483,-968.44109371,0.00029899,2]
[328767584,1717776647492,-968.44109371,0.000299,2]
[328767585,1717776647502,-968.44109371,0.000299,2]
[328767586,1717776647511,-169.98125819,0.000299,2]
[328767587,1717776647521,-345.0,0.000299,2]
[328767588,1717776647530,-968.44109371,0.000299,2]
[328767589,1717776647539,-443.59617771,0.000299,15]
[328767590,1717776647548,-160.0,0.000299,2]
[328767591,1717776647558,-162.91038785,0.000299,7]
[328767592,1717776647568,-162.91038785,0.000299,7]
[328767593,1717776647577,-162.91038785,0.000299,7]
[328767594,1717776647586,-162.91038785,0.000299,7]
[328767595,1717776647595,-162.91038785,0.000299,7]
[328767596,1717776647604,-162.91038785,0.000299,7]
[328767597,1717776647613,-162.91038785,0.000299,7]
[328767598,1717776647623,-162.91038785,0.000299,7]
[328767599,1717776647633,-162.91038785,0.000299,7]
[328767600,1717776647642,-162.91038785,0.000299,7]
[328767601,1717776647655,-163.41,0.000299,7]
[328767602,1717776647665,-358.47785328,0.000299,7]
[328767603,1717776647674,-358.47785328,0.000299,7]
[328767604,1717776647683,-358.47785328,0.000299,7]
[328767605,1717776647695,-358.47785328,0.000299,7]
[328767606,1717776647704,-358.47785328,0.000299,7]
[328767607,1717776647714,-358.47785328,0.000299,7]
[328767608,1717776647724,-358.47785328,0.000299,7]
[328767609,1717776647738,-358.47785328,0.000299,7]
[328767610,1717776647748,-358.47785328,0.000299,7]
[328767611,1717776647757,-358.47785328,0.000299,7]
[328767612,1717776647767,-358.47785328,0.000299,7]
[328767613,1717776647776,-358.47785328,0.000299,7]
[328767614,1717776647785,-358.47785328,0.000299,7]
[328767615,1717776647795,-358.47785328,0.000299,7]
[328767616,1717776647804,-358.47785328,0.000299,7]
[328767617,1717776647815,-358.47785328,0.000299,7]
[328767618,1717776647824,-358.47785328,0.000299,7]
[328767619,1717776647834,-358.47785328,0.000299,7]
[328767620,1717776647843,-358.47785328,0.000299,7]
[328767621,1717776647853,-358.97,0.000299,7]
[328767622,1717776647862,-150.0,0.000299,6]
[328767623,1717776647872,-150.0,0.000299,6]
[328767624,1717776647881,-419.16881121,0.000299,2]
[328767625,1717776647891,-219.09016274,0.000299,2]
[328767626,1717776647900,-382.04590625,0.000299,2]
[328767627,1717776647910,-158.90772333,0.000299,5]
[328767628,1717776647919,-155.10720857,0.00029917,2]
[328767629,1717776647928,-150.73002061,0.00029941,2]
[328767630,1717776647937,-599.29699399,0.00029971,2]
[328767631,1717776647947,-800.0,0.00029973,2]
[328767632,1717776647957,-359.6424271,0.0002999,2]
[328767633,1717776647966,-359.6424271,0.0002999,2]
[328767634,1717776647976,-500.0,0.00029993,4]
[328767635,1717776647985,-500.0,0.00029993,4]
[328767636,1717776647995,-500.0,0.00029993,4]
[328767637,1717776648004,-501.69,0.00029993,4]
[328767638,1717776648013,-500.0,0.00029993,4]
[328767639,1717776648023,-500.0,0.00029993,4]
[328767640,1717776648032,-500.0,0.00029993,4]
[328767641,1717776648041,-500.0,0.00029996,4]
[328767642,1717776648051,-500.0,0.00029996,4]
[328767643,1717776648061,-500.0,0.00029996,4]
[328767644,1717776648070,-500.0,0.00029996,4]
[328767645,1717776648079,-500.0,0.00029996,4]
[328767646,1717776648089,-500.0,0.00029996,4]
[328767647,1717776648098,-500.0,0.00029996,4]
[328767648,1717776648107,-500.0,0.00029996,4]
[328767649,1717776648116,-500.0,0.00029996,4]
[328767650,1717776648126,-500.0,0.00029996,4]
[328767651,1717776648136,-326.48,0.00029996,4]
[328767652,1717776648145,-500.0,0.00029996,4]
[328767653,1717776648155,-500.0,0.00029996,4]
[328767654,1717776648164,-500.0,0.00029996,4]
[328767655,1717776648173,-500.0,0.00029996,4]
[328767656,1717776648183,-500.0,0.00029996,4]
[328767657,1717776648192,-623.89,0.00029996,4]
[328767658,1717776648201,-500.0,0.00029996,2]
[328767659,1717776648211,-500.0,0.00029996,4]
[328767660,1717776648220,-500.0,0.00029996,4]
[328767661,1717776648233,-500.0,0.00029996,4]
[328767662,1717776648246,-187.1,0.00029996,4]
[328767663,1717776648259,-183.96,0.00029996,4]
[328767664,1717776648272,-500.0,0.00029996,4]
[328767665,1717776648284,-252.06,0.00029996,4]
[328767666,1717776648296,-172.12,0.00029996,4]
[328767667,1717776648306,-500.0,0.00029996,4]
[328767668,1717776648319,-2143.18,0.00029996,4]
[328767669,1717776648331,-500.0,0.00029996,4]
[328767670,1717776648343,-500.0,0.00029996,4]
[328767671,1717776648355,-500.0,0.00029996,4]
[328767672,1717776648368,-500.0,0.00029997,4]
[328767673,1717776648381,-500.0,0.00029997,4]
[328767674,1717776648393,-150.0,0.00029997,2]
[328767675,1717776648405,-500.0,0.00029997,4]
[328767676,1717776648419,-399.77,0.00029997,4]
[328767677,1717776648432,-500.0,0.00029997,4]
[328767678,1717776648443,-200.98,0.00029997,4]
[328767679,1717776648456,-523.45654584,0.00029997,4]
[328767680,1717776648467,-500.0,0.00029997,4]
[328767681,1717776648480,-500.0,0.00029997,4]
[328767682,1717776648491,-500.0,0.00029997,4]
[328767683,1717776648502,-500.0,0.00029997,4]
[328767684,1717776648514,-549.84806466,0.00029997,4]
[328767685,1717776648527,-500.0,0.00029997,4]
[328767686,1717776648539,-447.70168929,0.00029997,4]
[328767687,1717776648550,-500.0,0.00029997,4]
[328767688,1717776648563,-579.9115326,0.00029997,4]
[328767689,1717776648574,-500.0,0.00029997,4]
[328767690,1717776648583,-500.0,0.00029997,4]
[328767691,1717776648593,-500.0,0.00029997,4]
[328767692,1717776648604,-500.0,0.00029997,4]
[328767693,1717776648616,-503.42080797,0.00029997,4]
[328767694,1717776648627,-500.0,0.00029997,4]
[328767695,1717776648639,-500.0,0.00029997,4]
[328767696,1717776648652,-448.03882667,0.00029997,4]
[328767697,1717776648665,-500.0,0.00029997,4]
[328767698,1717776648677,-500.0,0.00029997,4]
[328767699,1717776648688,-500.0,0.00029997,4]
[328767700,1717776648701,-500.0,0.00029997,4]
[328767701,1717776648714,-500.0,0.00029997,4]
[328767702,1717776648726,-573.35598812,0.00029997,4]
[328767703,1717776648739,-500.0,0.00029997,4]
[328767704,1717776648750,-164.22580137,0.00029997,4]
[328767705,1717776648760,-500.0,0.00029997,4]
[328767706,1717776648770,-409.69,0.00029997,4]
[328767707,1717776648780,-500.0,0.00029997,4]
[328767708,1717776648789,-500.0,0.00029997,4]
[328767709,1717776648800,-500.0,0.00029997,4]
[328767710,1717776648814,-500.0,0.00029997,4]
[328767711,1717776648826,-500.0,0.00029997,4]
[328767712,1717776648838,-243.70296007,0.00029997,4]
[328767713,1717776648851,-500.0,0.00029997,4]
[328767714,1717776648861,-500.0,0.00029997,4]
[328767715,1717776648871,-501.69,0.00029997,4]
[328767716,1717776648882,-501.69,0.00029997,4]
[328767717,1717776648893,-501.69,0.00029997,4]
[328767718,1717776648905,-500.0,0.00029997,4]
[328767719,1717776648916,-500.0,0.00029997,4]
[328767720,1717776648927,-500.0,0.00029997,4]
[328767721,1717776648938,-500.0,0.00029997,4]
[328767722,1717776648948,-500.0,0.00029997,4]
[328767723,1717776648958,-500.0,0.00029997,4]
[328767724,1717776648969,-500.0,0.00029997,4]
[328767725,1717776648980,-500.0,0.00029997,4]
[328767726,1717776648990,-599.86758487,0.00029997,4]
[328767727,1717776649001,-582.45895395,0.00029997,4]
[328767728,1717776649011,-623.89,0.00029997,4]
[328767729,1717776649022,-623.89,0.00029997,4]
[328767730,1717776649033,-500.0,0.00029997,4]
[328767731,1717776649044,-500.0,0.00029997,2]
[328767732,1717776649055,-249.42323354,0.00029997,2]
[328767733,1717776649067,-500.0,0.00029997,4]
[328767734,1717776649077,-500.0,0.00029997,4]
[328767735,1717776649088,-220.7,0.00029997,4]
[328767736,1717776649098,-893.41,0.00029997,4]
[328767737,1717776649109,-893.41,0.00029997,4]
[328767738,1717776649121,-500.0,0.00029997,4]
[328767739,1717776649132,-500.0,0.00029997,4]
[328767740,1717776649143,-500.0,0.00029997,4]
[328767741,1717776649155,-500.0,0.00029997,4]
[328767742,1717776649165,-416.53,0.00029997,4]
[328767743,1717776649177,-500.0,0.00029997,4]
[328767744,1717776649188,-500.0,0.00029997,4]
[328767745,1717776649199,-500.0,0.00029997,4]
[328767746,1717776649211,-199.14,0.00029997,4]
[328767747,1717776649221,-621.16,0.00029997,4]
[328767748,1717776649232,-621.16,0.00029997,4]
[328767749,1717776649244,-500.0,0.00029997,4]
[328767750,1717776649255,-500.0,0.00029997,4]
[328767751,1717776649266,-2143.18,0.00029997,4]
[328767752,1717776649277,-500.0,0.00029997,4]
[328767753,1717776649288,-500.0,0.00029997,4]
[328767754,1717776649299,-500.0,0.00029997,4]
[328767755,1717776649310,-500.0,0.00029997,4]
[328767756,1717776649322,-1113.59,0.00029997,4]
[328767757,1717776649332,-1113.59,0.00029997,4]
[328767758,1717776649343,-500.0,0.00029997,4]
[328767759,1717776649354,-500.0,0.00029997,4]
[328767760,1717776649364,-500.0,0.00029997,4]
[328767761,1717776649376,-500.0,0.00029997,4]
[328767762,1717776649387,-500.0,0.00029997,4]
[328767763,1717776649397,-500.0,0.00029997,4]
[328767764,1717776649408,-500.0,0.00029997,4]
[328767765,1717776649419,-466.92,0.00029997,4]
[328767766,1717776649430,-330.35986273,0.00029998,2]
[328767767,1717776649441,-155.0,0.00029998,2]
[328767768,1717776649452,-155.0,0.00029998,2]
[328767769,1717776649463,-155.0,0.00029998,2]
[328767770,1717776649475,-4035.21277532,0.00029998,2]
[328767771,1717776649486,-155.4354829,0.00029998,2]
[328767772,1717776649497,-657.64598636,0.00029998,2]
[328767773,1717776649509,-247.35049961,0.00029998,2]
[328767774,1717776649520,-718.87490575,0.00029998,2]
[328767775,1717776649531,-947.29362759,0.00029998,2]
[328767776,1717776649542,-265.85210799,0.00029998,2]
[328767777,1717776649553,-3340.52776406,0.00029998,2]
[328767778,1717776649565,-155.0,0.00029998,2]
[328767779,1717776649577,-411.63245029,0.00029998,2]
[328767780,1717776649588,-1261.07267491,0.00029998,2]
[328767781,1717776649599,-808.43729225,0.00029998,2]
[328767782,1717776649611,-234.40310765,0.00029998,2]
[328767783,1717776649622,-644.64661214,0.00029998,2]
[328767784,1717776649632,-1066.6874522,0.00029998,2]
[328767785,1717776649643,-217.26605951,0.00029998,2]
[328767786,1717776649657,-1203.42195458,0.00029998,2]
[328767787,1717776649668,-155.0,0.00029998,2]
[328767788,1717776649679,-227.00149485,0.00029998,2]
[328767789,1717776649692,-354.50548005,0.00029998,2]
[328767790,1717776649703,-265.58837095,0.00029998,2]
[328767791,1717776649714,-155.0,0.00029998,2]
[328767792,1717776649724,-686.67265106,0.00029998,2]
[328767793,1717776649736,-155.25607269,0.00029998,2]
[328767794,1717776649747,-215.66238223,0.00029998,2]
[328767795,1717776649757,-523.82451147,0.00029998,2]
[328767796,1717776649768,-1796.93110706,0.00029998,2]
[328767797,1717776649779,-156.27696473,0.00029998,2]
[328767798,1717776649789,-158.29323863,0.00029998,2]
[328767799,1717776649801,-162.01712187,0.00029998,2]
[328767800,1717776649813,-305.4059242,0.00029998,2]
[328767801,1717776649824,-155.0,0.00029998,2]
[328767802,1717776649835,-1996.91763044,0.00029998,2]
[328767803,1717776649846,-155.9680426,0.00029998,2]
[328767804,1717776649857,-156.59566531,0.00029998,2]
[328767805,1717776649867,-206.03555751,0.00029998,2]
[328767806,1717776649877,-623.47628621,0.00029998,2]
[328767807,1717776649886,-155.0,0.00029998,2]
[328767808,1717776649896,-168.29483398,0.00029998,2]
[328767809,1717776649906,-1000.0,0.00029998,2]
[328767810,1717776649915,-161.00209268,0.00029998,2]
[328767811,1717776649924,-325.92527991,0.00029998,2]
[328767812,1717776649934,-156.9828147,0.00029998,2]
[328767813,1717776649944,-222.76383005,0.00029998,2]
[328767814,1717776649953,-283.9538657,0.00029998,2]
[328767815,1717776649963,-210.39913373,0.00029998,2]
[328767816,1717776649972,-206.66142766,0.00029998,2]
[328767817,1717776649981,-156.82193563,0.00029998,2]
[328767818,1717776649991,-264.21931038,0.00029998,2]
[328767819,1717776650000,-265.16531005,0.00029998,2]
[328767820,1717776650212,-344.17887641,0.00029998,2]
[328767821,1717776650230,-234.25383046,0.00029998,2]
[328767822,1717776650246,-207.5485086,0.00029998,2]
[328767823,1717776650256,-156.06217308,0.00029998,2]
[328767824,1717776650266,-155.45609756,0.00029998,2]
[328767825,1717776650276,-425.1406425,0.00029998,2]
[328767826,1717776650285,-1387.20873514,0.00029998,2]
[328767827,1717776650295,-155.81695383,0.00029998,2]
[328767828,1717776650306,-238.22002314,0.00029998,2]
[328767829,1717776650318,-308.13866353,0.00029998,2]
[328767830,1717776650328,-157.26656919,0.00029998,2]
[328767831,1717776650337,-166.69163785,0.00029998,2]
[328767832,1717776650348,-155.31066144,0.00029998,2]
[328767833,1717776650357,-281.88330445,0.00029998,2]
[328767834,1717776650368,-9739.74289968,0.00029998,2]
[328767835,1717776650377,-156.51679492,0.00029998,2]
[328767836,1717776650386,-182.17936213,0.00029998,2]
[328767837,1717776650395,-155.40038889,0.00029998,2]
[328767838,1717776650404,-507.32294924,0.00029998,2]
[328767839,1717776650413,-155.42594967,0.00029998,2]
[328767840,1717776650422,-500.0,0.00029998,4]
[328767841,1717776650431,-500.0,0.00029998,4]
[328767842,1717776650439,-500.0,0.00029998,4]
[328767843,1717776650448,-500.0,0.00029998,4]
[328767844,1717776650457,-296.39180982,0.00029998,4]
[328767845,1717776650466,-216.47926949,0.00029998,2]
[328767846,1717776650475,-157.09026495,0.00029998,2]
[328767847,1717776650485,-197.10470978,0.00029998,2]
[328767848,1717776650493,-2330.69835528,0.00029998,2]
[328767849,1717776650502,-1275.87816055,0.00029998,2]
[328767850,1717776650511,-255.12566856,0.00029998,2]
[328767851,1717776650519,-500.0,0.00029998,4]
[328767852,1717776650529,-500.0,0.00029998,4]
[328767853,1717776650537,-500.0,0.00029998,4]
[328767854,1717776650546,-500.0,0.00029998,4]
[328767855,1717776650555,-259.57150424,0.00029998,4]
[328767856,1717776650566,-501.69,0.00029998,4]
[328767857,1717776650575,-500.0,0.00029998,4]
[328767858,1717776650584,-501.69,0.00029998,4]
[328767859,1717776650593,-500.0,0.00029998,4]
[328767860,1717776650602,-500.0,0.00029998,4]
[328767861,1717776650611,-501.69,0.00029998,4]
[328767862,1717776650620,-500.0,0.00029998,4]
[328767863,1717776650631,-501.69,0.00029998,4]
[328767864,1717776650640,-454.58913488,0.00029998,4]
[328767865,1717776650649,-501.69,0.00029998,4]
[328767866,1717776650662,-501.69,0.00029998,4]
[328767867,1717776650672,-500.0,0.00029998,4]
[328767868,1717776650681,-500.0,0.00029998,4]
[328767869,1717776650689,-500.0,0.00029998,4]
[328767870,1717776650699,-500.0,0.00029998,4]
[328767871,1717776650709,-500.0,0.00029998,4]
[328767872,1717776650718,-500.0,0.00029998,4]
[328767873,1717776650729,-500.0,0.00029998,4]
[328767874,1717776650741,-500.0,0.00029998,4]
[328767875,1717776650750,-500.0,0.00029998,4]
[328767876,1717776650759,-500.0,0.00029998,4]
[328767877,1717776650768,-500.0,0.00029998,4]
[328767878,1717776650777,-500.0,0.00029998,4]
[328767879,1717776650786,-500.0,0.00029998,4]
[328767880,1717776650796,-623.89,0.00029998,4]
[328767881,1717776650805,-623.89,0.00029998,4]
[328767882,1717776650815,-623.89,0.00029998,4]
[328767883,1717776650825,-623.89,0.00029998,4]
[328767884,1717776650834,-623.89,0.00029998,4]
[328767885,1717776650845,-623.89,0.00029998,4]
[328767886,1717776650860,-623.89,0.00029998,4]
[328767887,1717776650870,-151.0,0.00029998,7]
[328767888,1717776650880,-151.0,0.00029998,7]
[328767889,1717776650889,-337.81176224,0.00029998,2]
[328767890,1717776650898,-210.85945317,0.00029998,2]
[328767891,1717776650907,-1502.47426929,0.00029998,2]
[328767892,1717776650916,-156.01219047,0.00029998,2]
[328767893,1717776650925,-267.00542666,0.00029998,2]
[328767894,1717776650934,-236.91615049,0.00029998,2]
[328767895,1717776650943,-447.82661952,0.00029998,2]
[328767896,1717776650952,-1144.72939741,0.00029998,2]
[328767897,1717776650960,-500.0,0.00029998,4]
[328767898,1717776650970,-3910.57124673,0.00029998,2]
[328767899,1717776650979,-3129.77476026,0.00029998,2]
[328767900,1717776650988,-155.0,0.00029998,2]
[328767901,1717776650997,-1802.57539702,0.00029998,2]
[328767902,1717776651006,-1214.41091796,0.00029998,2]
[328767903,1717776651015,-522.42316366,0.00029998,2]
[328767904,1717776651025,-220.26,0.00029998,4]
[328767905,1717776651034,-500.0,0.00029998,4]
[328767906,1717776651043,-2143.18,0.00029998,4]
[328767907,1717776651052,-500.0,0.00029998,4]
[328767908,1717776651062,-151.0,0.00029998,7]
[328767909,1717776651071,-500.0,0.00029998,4]
[328767910,1717776651080,-500.0,0.00029998,4]
[328767911,1717776651089,-151.0,0.00029998,7]
[328767912,1717776651099,-151.0,0.00029998,7]
[328767913,1717776651108,-219.344539,0.00029998,7]
[328767914,1717776651118,-413.34281113,0.00029999,2]
[328767915,1717776651127,-500.0,0.00029999,2]
[328767916,1717776651137,-200.0,0.00029999,2]
[328767917,1717776651146,-500.0,0.00029999,4]
[328767918,1717776651156,-209.81912399,0.00029999,4]
[328767919,1717776651165,-500.0,0.00029999,4]
[328767920,1717776651175,-500.0,0.00029999,4]
[328767921,1717776651184,-500.0,0.00029999,4]
[328767922,1717776651193,-500.0,0.00029999,4]
[328767923,1717776651202,-500.0,0.00029999,4]
[328767924,1717776651212,-500.0,0.00029999,4]
[328767925,1717776651221,-500.0,0.00029999,4]
[328767926,1717776651230,-500.0,0.00029999,4]
[328767927,1717776651239,-500.0,0.00029999,4]
[328767928,1717776651248,-500.0,0.00029999,4]
[328767929,1717776651257,-500.0,0.00029999,4]
[328767930,1717776651267,-500.0,0.00029999,4]
[328767931,1717776651277,-500.0,0.00029999,4]
[328767932,1717776651286,-232.97278056,0.00029999,4]
[328767933,1717776651295,-151.0,0.00029999,7]
[328767934,1717776651305,-500.0,0.00029999,4]
[328767935,1717776651316,-500.0,0.00029999,4]
[328767936,1717776651326,-500.0,0.00029999,4]
[328767937,1717776651335,-500.0,0.00029999,4]
[328767938,1717776651345,-358.10717354,0.00029999,4]
[328767939,1717776651354,-190.831482,0.00029999,7]
[328767940,1717776651363,-500.0,0.00029999,4]
[328767941,1717776651373,-500.0,0.00029999,4]
[328767942,1717776651382,-500.0,0.00029999,4]
[328767943,1717776651392,-500.78,0.00029999,4]
[328767944,1717776651401,-190.831482,0.00029999,7]
[328767945,1717776651410,-500.0,0.00029999,4]
[328767946,1717776651419,-500.0,0.00029999,4]
[328767947,1717776651428,-500.0,0.00029999,4]
[328767948,1717776651438,-500.0,0.00029999,4]
[328767949,1717776651447,-500.0,0.00029999,4]
[328767950,1717776651456,-500.0,0.00029999,4]
[328767951,1717776651466,-501.69,0.00029999,4]
[328767952,1717776651475,-501.69,0.00029999,4]
[328767953,1717776651485,-501.69,0.00029999,4]
[328767954,1717776651494,-501.69,0.00029999,4]
[328767955,1717776651503,-501.69,0.00029999,4]
[328767956,1717776651513,-501.69,0.00029999,4]
[328767957,1717776651522,-501.69,0.00029999,4]
[328767958,1717776651533,-501.69,0.00029999,4]
[328767959,1717776651548,-501.69,0.00029999,4]
[328767960,1717776651558,-501.69,0.00029999,4]
[328767961,1717776651568,-501.69467386,0.00029999,4]
[328767962,1717776651577,-151.0,0.00029999,7]
[328767963,1717776651587,-500.0,0.00029999,4]
[328767964,1717776651597,-500.0,0.00029999,4]
[328767965,1717776651607,-500.0,0.00029999,4]
[328767966,1717776651617,-500.0,0.00029999,4]
[328767967,1717776651627,-500.0,0.00029999,4]
[328767968,1717776651637,-500.0,0.00029999,4]
[328767969,1717776651647,-500.0,0.00029999,4]
[328767970,1717776651660,-500.0,0.00029999,4]
[328767971,1717776651670,-500.0,0.00029999,4]
[328767972,1717776651680,-444.90416008,0.00029999,4]
[328767973,1717776651690,-500.0,0.00029999,4]
[328767974,1717776651701,-500.0,0.00029999,4]
[328767975,1717776651710,-500.0,0.00029999,4]
[328767976,1717776651721,-500.0,0.00029999,4]
[328767977,1717776651731,-500.0,0.00029999,4]
[328767978,1717776651741,-500.0,0.00029999,4]
[328767979,1717776651751,-500.0,0.00029999,4]
[328767980,1717776651761,-550.50165183,0.00029999,4]
[328767981,1717776651770,-623.89,0.00029999,4]
[328767982,1717776651781,-623.89,0.00029999,4]
[328767983,1717776651790,-623.89,0.00029999,4]
[328767984,1717776651799,-623.89,0.00029999,4]
[328767985,1717776651808,-623.89,0.00029999,4]
[328767986,1717776651818,-623.89,0.00029999,4]
[328767987,1717776651828,-623.89,0.00029999,4]
[328767988,1717776651837,-623.89,0.00029999,4]
[328767989,1717776651847,-623.89,0.00029999,4]
[328767990,1717776651856,-623.89,0.00029999,4]
[328767991,1717776651866,-623.97419002,0.00029999,4]
[328767992,1717776651875,-193.78328715,0.00029999,4]
[328767993,1717776651884,-3000.0,0.00029999,2]
[328767994,1717776651894,-893.41,0.00029999,4]
[328767995,1717776651903,-893.41,0.00029999,4]
[328767996,1717776651912,-893.41,0.00029999,4]
[328767997,1717776651921,-893.41,0.00029999,4]
[328767998,1717776651931,-893.41,0.00029999,4]
[328767999,1717776651940,-893.41,0.00029999,4]
[328768000,1717776651949,-893.41,0.00029999,4]
[328768001,1717776651959,-893.41,0.00029999,4]
[328768002,1717776651969,-893.41,0.00029999,4]
[328768003,1717776651978,-893.41,0.00029999,4]
[328768004,1717776651988,-893.41,0.00029999,4]
[328768005,1717776651997,-893.41,0.00029999,4]
[328768006,1717776652006,-893.41,0.00029999,4]
[328768007,1717776652016,-893.41,0.00029999,4]
[328768008,1717776652026,-893.41,0.00029999,4]
[328768009,1717776652035,-893.41,0.00029999,4]
[328768010,1717776652044,-893.41,0.00029999,4]
[328768011,1717776652054,-893.41,0.00029999,4]
[328768012,1717776652065,-893.41,0.00029999,4]
[328768013,1717776652074,-893.43,0.00029999,4]
[328768014,1717776652084,-500.0,0.00029999,4]
[328768015,1717776652093,-500.0,0.00029999,4]
[328768016,1717776652103,-500.0,0.00029999,4]
[328768017,1717776652112,-500.0,0.00029999,4]
[328768018,1717776652122,-500.0,0.00029999,4]
[328768019,1717776652131,-500.0,0.00029999,4]
[328768020,1717776652140,-500.0,0.00029999,4]
[328768021,1717776652150,-500.0,0.00029999,4]
[328768022,1717776652160,-500.0,0.00029999,4]
[328768023,1717776652170,-500.0,0.00029999,4]
[328768024,1717776652179,-500.0,0.00029999,4]
[328768025,1717776652189,-500.0,0.00029999,4]
[328768026,1717776652198,-641.88655991,0.00029999,4]
[328768027,1717776652208,-500.0,0.00029999,4]
[328768028,1717776652217,-500.0,0.00029999,4]
[328768029,1717776652228,-500.0,0.00029999,4]
[328768030,1717776652238,-500.0,0.00029999,4]
[328768031,1717776652247,-500.0,0.00029999,4]
[328768032,1717776652257,-500.0,0.00029999,4]
[328768033,1717776652267,-534.96,0.00029999,4]
[328768034,1717776652277,-500.0,0.00029999,4]
[328768035,1717776652287,-500.0,0.00029999,4]
[328768036,1717776652297,-500.0,0.00029999,4]
[328768037,1717776652306,-500.0,0.00029999,4]
[328768038,1717776652317,-352.96,0.00029999,4]
[328768039,1717776652326,-151.0,0.00029999,7]
[328768040,1717776652335,-488.299823,0.00029999,7]
[328768041,1717776652344,-488.299823,0.00029999,7]
[328768042,1717776652354,-621.16,0.00029999,4]
[328768043,1717776652363,-621.16,0.00029999,4]
[328768044,1717776652374,-621.16,0.00029999,4]
[328768045,1717776652383,-621.16,0.00029999,4]
[328768046,1717776652393,-621.16,0.00029999,4]
[328768047,1717776652402,-621.16,0.00029999,4]
[328768048,1717776652412,-621.16,0.00029999,4]
[328768049,1717776652421,-621.16,0.00029999,4]
[328768050,1717776652431,-621.16,0.00029999,4]
[328768051,1717776652441,-621.16,0.00029999,4]
[328768052,1717776652451,-621.16,0.00029999,4]
[328768053,1717776652461,-621.16,0.00029999,4]
[328768054,1717776652471,-621.16,0.00029999,4]
[328768055,1717776652480,-621.16,0.00029999,4]
[328768056,1717776652490,-621.16,0.00029999,4]
[328768057,1717776652500,-621.16,0.00029999,4]
[328768058,1717776652510,-621.16,0.00029999,4]